[Event "Titled Tuesday Blitz October 11 Late 2022"]
[White "Principe, Gerson"]
[Black "Keymer, Vincent"]
[WhiteFideId "3804550"]
[BlackFideId "12940690"]
[WhiteElo "2280"]
[BlackElo "2600"]
[Result "1/2-1/2"]
[Round "03"]
[TimeControl "180+1"]
[Date "2022.10.12"]
[WhiteClock "0:00:22"]
[BlackClock "0:00:07"]

1. Nf3 {[%clk 0:02:59]}  d5 {[%clk 0:02:59]} 2. e3 {[%clk 0:02:58]}  Nf6 {[%clk 0:02:56]} 3. d4 {[%clk 0:02:58]}  e6 {[%clk 0:02:56]} 4. Be2 {[%clk 0:02:58]}  Bd6 {[%clk 0:02:56]} 5. O-O {[%clk 0:02:59]}  O-O {[%clk 0:02:56]} 6. b3 {[%clk 0:03:00]}  b6 {[%clk 0:02:56]} 7. Bb2 {[%clk 0:03:00]}  Bb7 {[%clk 0:02:56]} 8. Nbd2 {[%clk 0:03:00]}  Nbd7 {[%clk 0:02:57]} 9. Ne5 {[%clk 0:03:00]}  c5 {[%clk 0:02:55]} 10. f4 {[%clk 0:03:00]}  Rc8 {[%clk 0:02:54]} 11. c4 {[%clk 0:02:50]}  Re8 {[%clk 0:02:39]} 12. Rc1 {[%clk 0:02:32]}  Nf8 {[%clk 0:02:38]} 13. Bf3 {[%clk 0:02:30]}  Ng6 {[%clk 0:02:36]} 14. g3 {[%clk 0:02:27]}  Re7 {[%clk 0:02:33]} 15. Qe2 {[%clk 0:02:25]}  Rec7 {[%clk 0:02:33]} 16. Nxg6 {[%clk 0:02:11]}  hxg6 {[%clk 0:02:32]} 17. e4 {[%clk 0:02:10]}  dxe4 {[%clk 0:02:27]} 18. Nxe4 {[%clk 0:02:10]}  Bxe4 {[%clk 0:01:53]} 19. Bxe4 {[%clk 0:02:08]}  cxd4 {[%clk 0:01:40]} 20. Bxd4 {[%clk 0:02:03]}  Rd7 {[%clk 0:01:39]} 21. Bc3 {[%clk 0:01:47]}  Qe7 {[%clk 0:01:29]} 22. Rcd1 {[%clk 0:01:37]}  Rcd8 {[%clk 0:01:25]} 23. Kg2 {[%clk 0:01:35]}  Bb4 {[%clk 0:01:24]} 24. Bxf6 {[%clk 0:01:19]}  gxf6 {[%clk 0:01:21]} 25. Rd3 {[%clk 0:01:17]}  f5 {[%clk 0:01:18]} 26. Rxd7 {[%clk 0:01:05]}  Rxd7 {[%clk 0:01:11]} 27. Bd3 {[%clk 0:01:03]}  Qd8 {[%clk 0:00:52]} 28. Rd1 {[%clk 0:01:01]}  Rd4 {[%clk 0:00:51]} 29. Bc2 {[%clk 0:01:00]}  Bd2 {[%clk 0:00:50]} 30. Qe5 {[%clk 0:00:51]}  Rd7 {[%clk 0:00:42]} 31. h4 {[%clk 0:00:46]}  Qa8+ {[%clk 0:00:40]} 32. Kf2 {[%clk 0:00:43]}  Qc6 {[%clk 0:00:23]} 33. Qe2 {[%clk 0:00:38]}  Bb4 {[%clk 0:00:20]} 34. Rxd7 {[%clk 0:00:36]}  Qxd7 {[%clk 0:00:21]} 35. Qd3 {[%clk 0:00:34]}  Qc6 {[%clk 0:00:18]} 36. Qf3 {[%clk 0:00:24]}  Qc5+ {[%clk 0:00:16]} 37. Kg2 {[%clk 0:00:23]}  a5 {[%clk 0:00:12]} 38. Qd3 {[%clk 0:00:21]}  Ba3 {[%clk 0:00:10]} 39. Bd1 {[%clk 0:00:21]}  Bb2 {[%clk 0:00:08]} 40. Bf3 {[%clk 0:00:21]}  Kg7 {[%clk 0:00:08]} 41. Qe2 {[%clk 0:00:20]}  Bf6 {[%clk 0:00:07]} 42. Qd3 {[%clk 0:00:20]}  Be7 {[%clk 0:00:07]} 43. Qd2 {[%clk 0:00:20]}  Bf6 {[%clk 0:00:05]} 44. Qd3 {[%clk 0:00:20]}  e5 {[%clk 0:00:06]} 45. fxe5 {[%clk 0:00:20]}  Bxe5 {[%clk 0:00:07]} 46. Qe2 {[%clk 0:00:20]}  Qd6 {[%clk 0:00:07]} 47. Qf2 {[%clk 0:00:20]}  Bd4 {[%clk 0:00:06]} 48. Qe2 {[%clk 0:00:20]}  Qf6 {[%clk 0:00:07]} 49. Bd5 {[%clk 0:00:20]}  Bc5 {[%clk 0:00:07]} 50. Kh3 {[%clk 0:00:19]}  Bd6 {[%clk 0:00:07]} 51. Qf3 {[%clk 0:00:17]}  Qe5 {[%clk 0:00:06]} 52. Qd3 {[%clk 0:00:16]}  Qe1 {[%clk 0:00:05]} 53. Qf3 {[%clk 0:00:16]}  Be5 {[%clk 0:00:05]} 54. Kg2 {[%clk 0:00:16]}  Qd2+ {[%clk 0:00:04]} 55. Qf2 {[%clk 0:00:16]}  Qd3 {[%clk 0:00:04]} 56. Qf3 {[%clk 0:00:16]}  Qc2+ {[%clk 0:00:04]} 57. Qf2 {[%clk 0:00:17]}  Qb1 {[%clk 0:00:04]} 58. Qe2 {[%clk 0:00:15]}  Bf6 {[%clk 0:00:04]} 59. Qf2 {[%clk 0:00:15]}  Qc1 {[%clk 0:00:03]} 60. Qe2 {[%clk 0:00:15]}  Qc3 {[%clk 0:00:03]} 61. Qf3 {[%clk 0:00:15]}  Qe5 {[%clk 0:00:03]} 62. Qf2 {[%clk 0:00:14]}  Qc7 {[%clk 0:00:03]} 63. Qf3 {[%clk 0:00:14]}  Be5 {[%clk 0:00:04]} 64. Qe3 {[%clk 0:00:13]}  f4 {[%clk 0:00:05]} 65. gxf4 {[%clk 0:00:13]}  Bxf4 {[%clk 0:00:06]} 66. Qd4+ {[%clk 0:00:14]}  Be5 {[%clk 0:00:06]} 67. Qe4 {[%clk 0:00:14]}  Qe7 {[%clk 0:00:07]} 68. Qg4 {[%clk 0:00:14]}  Qf6 {[%clk 0:00:07]} 69. Bf3 {[%clk 0:00:11]}  Qd6 {[%clk 0:00:07]} 70. Bd5 {[%clk 0:00:11]}  Qa3 {[%clk 0:00:07]} 71. Qe2 {[%clk 0:00:10]}  Bf6 {[%clk 0:00:07]} 72. Kh3 {[%clk 0:00:10]}  Qd6 {[%clk 0:00:07]} 73. Qf3 {[%clk 0:00:09]}  Qe7 {[%clk 0:00:06]} 74. h5 {[%clk 0:00:09]}  Qe5 {[%clk 0:00:04]} 75. hxg6 {[%clk 0:00:08]}  fxg6 {[%clk 0:00:05]} 76. Qg4 {[%clk 0:00:08]}  Be7 {[%clk 0:00:05]} 77. Qe6 {[%clk 0:00:07]}  Qxe6+ {[%clk 0:00:02]} 78. Bxe6 {[%clk 0:00:08]}  Kf6 {[%clk 0:00:03]} 79. Bd5 {[%clk 0:00:08]}  Ke5 {[%clk 0:00:03]} 80. Kg4 {[%clk 0:00:08]}  Kd4 {[%clk 0:00:03]} 81. Bc6 {[%clk 0:00:08]}  Kc3 {[%clk 0:00:04]} 82. Ba4 {[%clk 0:00:08]}  Kb2 {[%clk 0:00:04]} 83. Be8 {[%clk 0:00:06]}  g5 {[%clk 0:00:04]} 84. Ba4 {[%clk 0:00:04]}  Kxa2 {[%clk 0:00:05]} 85. Kg3 {[%clk 0:00:03]}  Ka3 {[%clk 0:00:05]} 86. Kg4 {[%clk 0:00:04]}  Kb4 {[%clk 0:00:05]} 87. Kf5 {[%clk 0:00:05]}  Kc3 {[%clk 0:00:06]} 88. Kg4 {[%clk 0:00:05]}  Kd3 {[%clk 0:00:06]} 89. Kf3 {[%clk 0:00:06]}  Bd8 {[%clk 0:00:06]} 90. Kg3 {[%clk 0:00:05]}  Ke4 {[%clk 0:00:05]} 91. Kg2 {[%clk 0:00:06]}  Kf4 {[%clk 0:00:05]} 92. Bb5 {[%clk 0:00:06]}  g4 {[%clk 0:00:06]} 93. Ba4 {[%clk 0:00:07]}  Bc7 {[%clk 0:00:06]} 94. Bb5 {[%clk 0:00:08]}  g3 {[%clk 0:00:06]} 95. Ba4 {[%clk 0:00:09]}  Bd6 {[%clk 0:00:07]} 96. Bb5 {[%clk 0:00:10]}  Ke3 {[%clk 0:00:08]} 97. Ba4 {[%clk 0:00:10]}  Ke2 {[%clk 0:00:08]} 98. Bb5 {[%clk 0:00:11]}  Kd3 {[%clk 0:00:09]} 99. Ba4 {[%clk 0:00:11]}  Kd2 {[%clk 0:00:09]} 100. Kg1 {[%clk 0:00:12]}  Ke3 {[%clk 0:00:08]} 101. Kg2 {[%clk 0:00:12]}  Ke4 {[%clk 0:00:08]} 102. Bb5 {[%clk 0:00:13]}  Kd4 {[%clk 0:00:08]} 103. Ba4 {[%clk 0:00:13]}  Kc5 {[%clk 0:00:08]} 104. Kg1 {[%clk 0:00:12]}  Be5 {[%clk 0:00:06]} 105. Kg2 {[%clk 0:00:13]}  Kb4 {[%clk 0:00:06]} 106. Kg1 {[%clk 0:00:13]}  Bd4+ {[%clk 0:00:07]} 107. Kg2 {[%clk 0:00:13]}  Bf2 {[%clk 0:00:08]} 108. Kf1 {[%clk 0:00:13]}  Kc3 {[%clk 0:00:06]} 109. Kg2 {[%clk 0:00:14]}  Kd4 {[%clk 0:00:06]} 110. Kf1 {[%clk 0:00:14]}  Ke5 {[%clk 0:00:07]} 111. Kg2 {[%clk 0:00:15]}  Kf4 {[%clk 0:00:05]} 112. Bb5 {[%clk 0:00:15]}  Bc5 {[%clk 0:00:05]} 113. Ba4 {[%clk 0:00:15]}  b5 {[%clk 0:00:03]} 114. Bxb5 {[%clk 0:00:16]}  Bd6 {[%clk 0:00:02]} 115. Ba4 {[%clk 0:00:16]}  Bc7 {[%clk 0:00:03]} 116. Bb5 {[%clk 0:00:17]}  Ke3 {[%clk 0:00:03]} 117. Ba4 {[%clk 0:00:18]}  Kd4 {[%clk 0:00:04]} 118. Bb5 {[%clk 0:00:18]}  Kc3 {[%clk 0:00:04]} 119. Ba4 {[%clk 0:00:19]}  Kb4 {[%clk 0:00:05]} 120. Kg1 {[%clk 0:00:20]}  Kc5 {[%clk 0:00:04]} 121. Kg2 {[%clk 0:00:21]}  Kd4 {[%clk 0:00:04]} 122. Kg1 {[%clk 0:00:21]}  Kc5 {[%clk 0:00:05]} 123. Kg2 {[%clk 0:00:22]}  Kb4 {[%clk 0:00:06]} 124. Kg1 {[%clk 0:00:22]}  Kc5 {[%clk 0:00:07]} 1/2-1/2


[Site "https://www.chess.com"]

[Event "Titled Tuesday Blitz October 11 Late 2022"]
[White "Rosen, Eric"]
[Black "Baltaci, Ismail Tarik"]
[WhiteFideId "2032562"]
[BlackFideId "6365213"]
[WhiteElo "2362"]
[BlackElo "2349"]
[Result "1-0"]
[Round "03"]
[TimeControl "180+1"]
[Date "2022.10.12"]
[WhiteClock "0:00:11"]
[BlackClock "0:00:08"]

1. d4 {[%clk 0:03:00]}  Nf6 {[%clk 0:02:59]} 2. Bf4 {[%clk 0:02:59]}  g6 {[%clk 0:02:58]} 3. Nc3 {[%clk 0:02:59]}  d5 {[%clk 0:02:57]} 4. e3 {[%clk 0:02:58]}  Bg7 {[%clk 0:02:57]} 5. h4 {[%clk 0:02:59]}  h5 {[%clk 0:02:56]} 6. Nf3 {[%clk 0:02:59]}  Bg4 {[%clk 0:02:54]} 7. Qd2 {[%clk 0:02:58]}  Bxf3 {[%clk 0:02:52]} 8. gxf3 {[%clk 0:02:59]}  c6 {[%clk 0:02:51]} 9. O-O-O {[%clk 0:02:59]}  Nbd7 {[%clk 0:02:51]} 10. e4 {[%clk 0:02:54]}  e6 {[%clk 0:02:50]} 11. Kb1 {[%clk 0:02:52]}  O-O {[%clk 0:02:27]} 12. Rg1 {[%clk 0:02:49]}  b5 {[%clk 0:02:26]} 13. Bg5 {[%clk 0:02:42]}  Qb8 {[%clk 0:02:06]} 14. e5 {[%clk 0:02:33]}  Nh7 {[%clk 0:02:05]} 15. Be7 {[%clk 0:02:32]}  Re8 {[%clk 0:02:04]} 16. Bd6 {[%clk 0:02:33]}  Qb7 {[%clk 0:02:03]} 17. f4 {[%clk 0:02:31]}  Nb6 {[%clk 0:01:59]} 18. Qd3 {[%clk 0:01:56]}  a5 {[%clk 0:01:44]} 19. Be2 {[%clk 0:01:56]}  b4 {[%clk 0:01:44]} 20. Bxh5 {[%clk 0:01:29]}  bxc3 {[%clk 0:01:38]} 21. Bxg6 {[%clk 0:01:26]}  fxg6 {[%clk 0:01:36]} 22. Rxg6 {[%clk 0:01:21]}  Nc4 {[%clk 0:01:28]} 23. Qxc3 {[%clk 0:01:15]}  Nxd6 {[%clk 0:01:19]} 24. exd6 {[%clk 0:01:14]}  Nf8 {[%clk 0:01:19]} 25. Rg3 {[%clk 0:01:08]}  Kh8 {[%clk 0:01:16]} 26. Rdg1 {[%clk 0:01:07]}  Ra7 {[%clk 0:00:35]} 27. a4 {[%clk 0:00:54]}  Nh7 {[%clk 0:00:22]} 28. Rxg7 {[%clk 0:00:53]}  Qxg7 {[%clk 0:00:21]} 29. Rxg7 {[%clk 0:00:54]}  Rxg7 {[%clk 0:00:21]} 30. Qxc6 {[%clk 0:00:54]}  Nf6 {[%clk 0:00:21]} 31. h5 {[%clk 0:00:35]}  Rd7 {[%clk 0:00:20]} 32. Qb5 {[%clk 0:00:32]}  Ra8 {[%clk 0:00:18]} 33. Qc6 {[%clk 0:00:27]}  Rad8 {[%clk 0:00:18]} 34. Qb6 {[%clk 0:00:26]}  Rxd6 {[%clk 0:00:17]} 35. Qxa5 {[%clk 0:00:27]}  Ne4 {[%clk 0:00:16]} 36. f3 {[%clk 0:00:22]}  Ng3 {[%clk 0:00:14]} 37. Qe1 {[%clk 0:00:17]}  Nf5 {[%clk 0:00:10]} 38. Qe5+ {[%clk 0:00:16]}  Kh7 {[%clk 0:00:10]} 39. Qf6 {[%clk 0:00:14]}  R8d7 {[%clk 0:00:09]} 40. Qg6+ {[%clk 0:00:13]}  Kh8 {[%clk 0:00:09]} 41. h6 {[%clk 0:00:14]}  Rb6 {[%clk 0:00:08]} 42. Qe8+ {[%clk 0:00:10]}  Kh7 {[%clk 0:00:08]} 43. Qxd7+ {[%clk 0:00:10]}  Kxh6 {[%clk 0:00:08]} 44. a5 {[%clk 0:00:11]}  Rb4 {[%clk 0:00:08]} 45. Qxe6+ {[%clk 0:00:11]} 1-0


[Site "https://www.chess.com"]

[Event "Titled Tuesday Blitz October 11 Late 2022"]
[White "Sai Krishna G V"]
[Black "Poliakova, Varvara"]
[WhiteFideId "5028280"]
[BlackFideId "13518313"]
[WhiteElo "2359"]
[BlackElo "1938"]
[Result "0-1"]
[Round "03"]
[TimeControl "180+1"]
[Date "2022.10.12"]
[WhiteClock "0:00:29"]
[BlackClock "0:00:21"]

1. Nf3 {[%clk 0:03:00]}  f5 {[%clk 0:02:55]} 2. Nc3 {[%clk 0:02:57]}  d5 {[%clk 0:02:54]} 3. d4 {[%clk 0:02:53]}  Nf6 {[%clk 0:02:52]} 4. Ne5 {[%clk 0:02:49]}  c6 {[%clk 0:02:49]} 5. Bg5 {[%clk 0:02:47]}  e6 {[%clk 0:02:49]} 6. e3 {[%clk 0:02:42]}  Be7 {[%clk 0:02:44]} 7. Bd3 {[%clk 0:02:39]}  O-O {[%clk 0:02:38]} 8. g4 {[%clk 0:02:30]}  Ne4 {[%clk 0:02:30]} 9. Bxe7 {[%clk 0:02:26]}  Qxe7 {[%clk 0:02:31]} 10. Bxe4 {[%clk 0:02:22]}  fxe4 {[%clk 0:02:29]} 11. h4 {[%clk 0:02:22]}  Nd7 {[%clk 0:02:28]} 12. f4 {[%clk 0:02:17]}  exf3 {[%clk 0:02:18]} 13. Kf2 {[%clk 0:02:16]}  Nxe5 {[%clk 0:02:07]} 14. dxe5 {[%clk 0:02:17]}  Qc7 {[%clk 0:02:05]} 15. Qg1 {[%clk 0:01:46]}  Qxe5 {[%clk 0:01:59]} 16. Qg3 {[%clk 0:01:47]}  Qxg3+ {[%clk 0:01:37]} 17. Kxg3 {[%clk 0:01:48]}  e5 {[%clk 0:01:38]} 18. e4 {[%clk 0:01:48]}  d4 {[%clk 0:01:37]} 19. Nd1 {[%clk 0:01:47]}  Rf4 {[%clk 0:01:37]} 20. Nf2 {[%clk 0:01:48]}  Be6 {[%clk 0:01:22]} 21. Rad1 {[%clk 0:01:47]}  Raf8 {[%clk 0:01:18]} 22. c3 {[%clk 0:01:47]}  c5 {[%clk 0:01:18]} 23. a3 {[%clk 0:01:32]}  g6 {[%clk 0:00:46]} 24. g5 {[%clk 0:01:25]}  Rd8 {[%clk 0:00:37]} 25. h5 {[%clk 0:01:20]}  Kg7 {[%clk 0:00:34]} 26. Nd3 {[%clk 0:00:55]}  Rg4+ {[%clk 0:00:27]} 27. Kf2 {[%clk 0:00:54]}  Rf8 {[%clk 0:00:23]} 28. Rdg1 {[%clk 0:00:40]}  Rxe4 {[%clk 0:00:22]} 29. Nxc5 {[%clk 0:00:40]}  Re2+ {[%clk 0:00:23]} 30. Kg3 {[%clk 0:00:41]}  Bd5 {[%clk 0:00:20]} 31. hxg6 {[%clk 0:00:36]}  hxg6 {[%clk 0:00:20]} 32. Rd1 {[%clk 0:00:31]}  Rg2+ {[%clk 0:00:20]} 33. Kh4 {[%clk 0:00:29]}  Rh8# {[%clk 0:00:21]} 0-1


[Site "https://www.chess.com"]

[Event "Titled Tuesday Blitz October 11 Late 2022"]
[White "Sanal, Vahap"]
[Black "Carlsen, Magnus"]
[WhiteFideId "6300545"]
[BlackFideId "1503014"]
[WhiteElo "2574"]
[BlackElo "2830"]
[Result "1-0"]
[Round "03"]
[TimeControl "180+1"]
[Date "2022.10.11"]
[WhiteClock "0:00:08"]
[BlackClock "0:00:07"]

1. e4 {[%clk 0:03:00]}  g5 {[%clk 0:03:00]} 2. d4 {[%clk 0:03:00]}  h6 {[%clk 0:02:59]} 3. h4 {[%clk 0:02:56]}  g4 {[%clk 0:02:58]} 4. Qxg4 {[%clk 0:02:47]}  d5 {[%clk 0:02:58]} 5. Qe2 {[%clk 0:02:48]}  dxe4 {[%clk 0:02:58]} 6. Qxe4 {[%clk 0:02:49]}  Nf6 {[%clk 0:02:59]} 7. Qd3 {[%clk 0:02:45]}  Nc6 {[%clk 0:02:58]} 8. Nf3 {[%clk 0:02:38]}  Bg4 {[%clk 0:02:57]} 9. c3 {[%clk 0:02:38]}  Qd5 {[%clk 0:02:55]} 10. Be2 {[%clk 0:02:32]}  O-O-O {[%clk 0:02:54]} 11. Qb5 {[%clk 0:02:15]}  Bxf3 {[%clk 0:02:37]} 12. gxf3 {[%clk 0:02:14]}  e5 {[%clk 0:02:36]} 13. Qxd5 {[%clk 0:02:11]}  Nxd5 {[%clk 0:02:33]} 14. dxe5 {[%clk 0:02:11]}  Nxe5 {[%clk 0:02:34]} 15. h5 {[%clk 0:01:20]}  Bd6 {[%clk 0:02:22]} 16. Nd2 {[%clk 0:01:12]}  Rhe8 {[%clk 0:01:55]} 17. Ne4 {[%clk 0:01:10]}  f5 {[%clk 0:01:52]} 18. Nxd6+ {[%clk 0:01:09]}  Rxd6 {[%clk 0:01:53]} 19. Kf1 {[%clk 0:01:08]}  Rde6 {[%clk 0:01:07]} 20. Bd2 {[%clk 0:00:51]}  c6 {[%clk 0:00:57]} 21. Rd1 {[%clk 0:00:50]}  b5 {[%clk 0:00:56]} 22. Rh4 {[%clk 0:00:45]}  Kc7 {[%clk 0:00:54]} 23. Bc1 {[%clk 0:00:40]}  Kb6 {[%clk 0:00:51]} 24. a4 {[%clk 0:00:33]}  a6 {[%clk 0:00:51]} 25. axb5 {[%clk 0:00:31]}  axb5 {[%clk 0:00:51]} 26. Be3+ {[%clk 0:00:26]}  Nxe3+ {[%clk 0:00:51]} 27. fxe3 {[%clk 0:00:27]}  Nf7 {[%clk 0:00:51]} 28. Rf4 {[%clk 0:00:21]}  Rxe3 {[%clk 0:00:48]} 29. Rd2 {[%clk 0:00:21]}  R3e5 {[%clk 0:00:47]} 30. Kf2 {[%clk 0:00:19]}  Ng5 {[%clk 0:00:46]} 31. Bf1 {[%clk 0:00:19]}  Ra8 {[%clk 0:00:40]} 32. Rfd4 {[%clk 0:00:19]}  Ra1 {[%clk 0:00:36]} 33. Rd6 {[%clk 0:00:18]}  Nxf3 {[%clk 0:00:23]} 34. Kxf3 {[%clk 0:00:18]}  Rxf1+ {[%clk 0:00:23]} 35. Rf2 {[%clk 0:00:19]}  Rh1 {[%clk 0:00:14]} 36. Rxh6 {[%clk 0:00:19]}  Re4 {[%clk 0:00:13]} 37. Kg2 {[%clk 0:00:19]}  Reh4 {[%clk 0:00:13]} 38. Rxf5 {[%clk 0:00:19]}  R4h2+ {[%clk 0:00:13]} 39. Kg3 {[%clk 0:00:19]}  Rh3+ {[%clk 0:00:09]} 40. Kg4 {[%clk 0:00:18]}  Rh4+ {[%clk 0:00:09]} 41. Kg5 {[%clk 0:00:19]}  R4h2 {[%clk 0:00:09]} 42. Rff6 {[%clk 0:00:16]}  Rg2+ {[%clk 0:00:09]} 43. Kf5 {[%clk 0:00:17]}  Rf2+ {[%clk 0:00:08]} 44. Ke6 {[%clk 0:00:15]}  Rxf6+ {[%clk 0:00:09]} 45. Kxf6 {[%clk 0:00:14]}  Rh2 {[%clk 0:00:09]} 46. b4 {[%clk 0:00:13]}  Rh3 {[%clk 0:00:10]} 47. Kg7 {[%clk 0:00:13]}  Kc7 {[%clk 0:00:06]} 48. Rh8 {[%clk 0:00:10]}  Rxc3 {[%clk 0:00:06]} 49. h6 {[%clk 0:00:10]}  c5 {[%clk 0:00:07]} 50. bxc5 {[%clk 0:00:09]}  Rg3+ {[%clk 0:00:05]} 51. Kf6 {[%clk 0:00:09]}  Rf3+ {[%clk 0:00:04]} 52. Kg5 {[%clk 0:00:08]}  Rh3 {[%clk 0:00:05]} 53. Rf8 {[%clk 0:00:08]}  b4 {[%clk 0:00:06]} 54. Rf6 {[%clk 0:00:08]}  b3 {[%clk 0:00:06]} 55. Rb6 {[%clk 0:00:08]}  b2 {[%clk 0:00:07]} 56. Rxb2 {[%clk 0:00:08]}  Kc6 {[%clk 0:00:07]} 57. Rg2 {[%clk 0:00:07]}  Kxc5 {[%clk 0:00:06]} 58. Kg6 {[%clk 0:00:08]}  Rh2 {[%clk 0:00:07]} 59. Rxh2 {[%clk 0:00:08]} 1-0


[Site "https://www.chess.com"]

[Event "Titled Tuesday Blitz October 11 Late 2022"]
[White "Schrik, Rachid"]
[Black "Shuqja, Klean"]
[WhiteFideId "1009818"]
[BlackFideId "4701585"]
[WhiteElo "2098"]
[BlackElo "1893"]
[Result "1-0"]
[Round "03"]
[TimeControl "180+1"]
[Date "2022.10.12"]
[WhiteClock "0:02:35"]
[BlackClock "0:02:16"]

1. d4 {[%clk 0:02:59]}  Nf6 {[%clk 0:02:54]} 2. c4 {[%clk 0:02:59]}  e6 {[%clk 0:02:54]} 3. Nc3 {[%clk 0:03:00]}  Bb4 {[%clk 0:02:54]} 4. a3 {[%clk 0:03:00]}  Bxc3+ {[%clk 0:02:54]} 5. bxc3 {[%clk 0:03:01]}  O-O {[%clk 0:02:54]} 6. f3 {[%clk 0:03:02]}  d6 {[%clk 0:02:52]} 7. e4 {[%clk 0:03:02]}  e5 {[%clk 0:02:53]} 8. Bd3 {[%clk 0:03:02]}  Nbd7 {[%clk 0:02:49]} 9. Ne2 {[%clk 0:03:02]}  Qe7 {[%clk 0:02:47]} 10. O-O {[%clk 0:03:01]}  b6 {[%clk 0:02:28]} 11. Ng3 {[%clk 0:02:59]}  g6 {[%clk 0:02:28]} 12. Bg5 {[%clk 0:02:55]}  Kg7 {[%clk 0:02:26]} 13. f4 {[%clk 0:02:50]}  exf4 {[%clk 0:02:20]} 14. Rxf4 {[%clk 0:02:41]}  h6 {[%clk 0:02:19]} 15. Bh4 {[%clk 0:02:35]}  g5 {[%clk 0:02:16]} 16. Nf5+ {[%clk 0:02:35]} 1-0


[Site "https://www.chess.com"]

[Event "Titled Tuesday Blitz October 11 Late 2022"]
[White "Shandrygin, Nikita"]
[Black "Leve, Nitai"]
[WhiteFideId "24198668"]
[BlackFideId "2006898"]
[WhiteElo "2323"]
[BlackElo "2144"]
[Result "0-1"]
[Round "03"]
[TimeControl "180+1"]
[Date "2022.10.12"]
[WhiteClock "0:01:20"]
[BlackClock "0:00:38"]

1. e4 {[%clk 0:03:00]}  e6 {[%clk 0:02:59]} 2. d4 {[%clk 0:03:00]}  d5 {[%clk 0:02:59]} 3. Nd2 {[%clk 0:03:01]}  Nf6 {[%clk 0:02:55]} 4. e5 {[%clk 0:03:01]}  Nfd7 {[%clk 0:02:54]} 5. f4 {[%clk 0:03:02]}  c5 {[%clk 0:02:55]} 6. c3 {[%clk 0:03:03]}  Nc6 {[%clk 0:02:52]} 7. Ndf3 {[%clk 0:03:03]}  cxd4 {[%clk 0:02:50]} 8. cxd4 {[%clk 0:03:04]}  Qb6 {[%clk 0:02:50]} 9. h4 {[%clk 0:03:04]}  f6 {[%clk 0:02:49]} 10. a3 {[%clk 0:02:50]}  fxe5 {[%clk 0:02:47]} 11. fxe5 {[%clk 0:02:51]}  Be7 {[%clk 0:02:47]} 12. Bd3 {[%clk 0:02:44]}  Nf8 {[%clk 0:02:16]} 13. Ne2 {[%clk 0:02:42]}  Bd7 {[%clk 0:02:15]} 14. b4 {[%clk 0:02:33]}  O-O-O {[%clk 0:02:10]} 15. Bd2 {[%clk 0:02:24]}  Kb8 {[%clk 0:02:08]} 16. b5 {[%clk 0:02:21]}  Na5 {[%clk 0:01:56]} 17. Qa4 {[%clk 0:02:21]}  Nc4 {[%clk 0:01:56]} 18. Bxc4 {[%clk 0:02:22]}  dxc4 {[%clk 0:01:57]} 19. Ba5 {[%clk 0:02:22]}  Qxb5 {[%clk 0:01:37]} 20. Qxb5 {[%clk 0:02:22]}  Bxb5 {[%clk 0:01:38]} 21. Bxd8 {[%clk 0:02:23]}  Bxd8 {[%clk 0:01:39]} 22. Nc3 {[%clk 0:02:18]}  Bc6 {[%clk 0:01:36]} 23. O-O {[%clk 0:02:17]}  Bb6 {[%clk 0:01:32]} 24. Rad1 {[%clk 0:02:05]}  Ng6 {[%clk 0:01:30]} 25. Kh2 {[%clk 0:02:05]}  h6 {[%clk 0:01:25]} 26. d5 {[%clk 0:02:01]}  exd5 {[%clk 0:01:22]} 27. Nxd5 {[%clk 0:02:02]}  Ba5 {[%clk 0:01:18]} 28. Nb4 {[%clk 0:02:00]}  Bxf3 {[%clk 0:01:07]} 29. Rxf3 {[%clk 0:01:59]}  Nxe5 {[%clk 0:01:08]} 30. Rf5 {[%clk 0:01:57]}  Bxb4 {[%clk 0:00:58]} 31. Rxe5 {[%clk 0:01:55]}  Bxa3 {[%clk 0:00:58]} 32. Re4 {[%clk 0:01:47]}  b5 {[%clk 0:00:55]} 33. Rd7 {[%clk 0:01:45]}  c3 {[%clk 0:00:51]} 34. Rd5 {[%clk 0:01:20]}  c2 {[%clk 0:00:44]} 35. Rxb5+ {[%clk 0:01:20]}  Ka8 {[%clk 0:00:38]} 0-1


[Site "https://www.chess.com"]

[Event "Titled Tuesday Blitz October 11 Late 2022"]
[White "Shohat, Yotam"]
[Black "Tayar, Jonathan"]
[WhiteFideId "2813955"]
[BlackFideId "2606534"]
[WhiteElo "2199"]
[BlackElo "2406"]
[Result "0-1"]
[Round "03"]
[TimeControl "180+1"]
[Date "2022.10.12"]
[WhiteClock "0:00:03"]
[BlackClock "0:00:15"]

1. e4 {[%clk 0:03:00]}  c5 {[%clk 0:02:59]} 2. Nf3 {[%clk 0:03:01]}  d6 {[%clk 0:02:59]} 3. Bb5+ {[%clk 0:03:01]}  Bd7 {[%clk 0:02:57]} 4. Bxd7+ {[%clk 0:03:01]}  Qxd7 {[%clk 0:02:58]} 5. O-O {[%clk 0:03:01]}  Nc6 {[%clk 0:02:58]} 6. c3 {[%clk 0:03:01]}  Nf6 {[%clk 0:02:58]} 7. d4 {[%clk 0:03:02]}  cxd4 {[%clk 0:02:57]} 8. cxd4 {[%clk 0:03:03]}  d5 {[%clk 0:02:57]} 9. e5 {[%clk 0:03:02]}  Ne4 {[%clk 0:02:58]} 10. Ne1 {[%clk 0:03:03]}  h6 {[%clk 0:02:57]} 11. f3 {[%clk 0:03:03]}  Ng5 {[%clk 0:02:57]} 12. Be3 {[%clk 0:03:03]}  Ne6 {[%clk 0:02:48]} 13. f4 {[%clk 0:02:59]}  g6 {[%clk 0:02:47]} 14. Nc3 {[%clk 0:02:55]}  Ng7 {[%clk 0:02:47]} 15. Nf3 {[%clk 0:02:50]}  Rc8 {[%clk 0:02:44]} 16. Bf2 {[%clk 0:02:46]}  e6 {[%clk 0:02:43]} 17. Bh4 {[%clk 0:02:43]}  g5 {[%clk 0:02:19]} 18. fxg5 {[%clk 0:02:40]}  Nf5 {[%clk 0:02:20]} 19. g6 {[%clk 0:02:24]}  fxg6 {[%clk 0:02:17]} 20. Bf6 {[%clk 0:02:22]}  Bg7 {[%clk 0:02:12]} 21. Bxg7 {[%clk 0:02:22]}  Qxg7 {[%clk 0:02:10]} 22. Qd3 {[%clk 0:02:13]}  a6 {[%clk 0:01:59]} 23. Rf2 {[%clk 0:02:11]}  O-O {[%clk 0:01:58]} 24. Raf1 {[%clk 0:02:11]}  Rf7 {[%clk 0:01:50]} 25. Ne2 {[%clk 0:02:06]}  g5 {[%clk 0:01:40]} 26. g4 {[%clk 0:02:01]}  Nfe7 {[%clk 0:01:29]} 27. Ng3 {[%clk 0:02:01]}  Qg6 {[%clk 0:01:24]} 28. Qd1 {[%clk 0:01:38]}  Rcf8 {[%clk 0:01:19]} 29. Nh5 {[%clk 0:01:36]}  Qe4 {[%clk 0:01:17]} 30. Nf6+ {[%clk 0:01:22]}  Rxf6 {[%clk 0:01:17]} 31. exf6 {[%clk 0:01:23]}  Rxf6 {[%clk 0:01:17]} 32. Nxg5 {[%clk 0:01:17]}  Qe3 {[%clk 0:01:11]} 33. Nf3 {[%clk 0:00:58]}  Ng6 {[%clk 0:00:56]} 34. Qd2 {[%clk 0:00:53]}  Rxf3 {[%clk 0:00:52]} 35. Qxe3 {[%clk 0:00:36]}  Rxe3 {[%clk 0:00:52]} 36. Rd1 {[%clk 0:00:20]}  Kg7 {[%clk 0:00:42]} 37. Rff1 {[%clk 0:00:15]}  Re4 {[%clk 0:00:41]} 38. h3 {[%clk 0:00:14]}  Nxd4 {[%clk 0:00:40]} 39. Kg2 {[%clk 0:00:14]}  Nf4+ {[%clk 0:00:37]} 40. Kg3 {[%clk 0:00:14]}  e5 {[%clk 0:00:26]} 41. Rfe1 {[%clk 0:00:12]}  Nfe2+ {[%clk 0:00:23]} 42. Kf2 {[%clk 0:00:07]}  Kg6 {[%clk 0:00:21]} 43. Rd2 {[%clk 0:00:05]}  Kg5 {[%clk 0:00:17]} 44. b3 {[%clk 0:00:04]}  Kh4 {[%clk 0:00:16]} 45. Rd3 {[%clk 0:00:04]}  Rf4+ {[%clk 0:00:15]} 46. Kg2 {[%clk 0:00:03]}  Re4 {[%clk 0:00:15]} 47. Kf2 {[%clk 0:00:02]}  Nf4 {[%clk 0:00:14]} 48. Rxe4 {[%clk 0:00:02]}  Nxd3+ {[%clk 0:00:14]} 49. Ke3 {[%clk 0:00:02]}  dxe4 {[%clk 0:00:15]} 50. Kxe4 {[%clk 0:00:02]}  Kxh3 {[%clk 0:00:15]} 51. Kxd3 {[%clk 0:00:03]}  Kxg4 {[%clk 0:00:15]} 52. Ke4 {[%clk 0:00:03]}  h5 {[%clk 0:00:15]} 0-1


[Site "https://www.chess.com"]